Cogmind - Beta 17.1 @@@ ROGUE MODE // 2026.08.30 @ 03:17:48 Player: Boatmurdered Result: Destroyed by SKR-2 with Compact Linear Accelerator Performance ------------- Evolutions (7) 3500 Regions Visited (21) 4200 Robots Destroyed (249) 1245 Value Destroyed (9145) 9145 Prototype IDs (53) 1060 Alien Tech Used (0) 0 Bonus (3803) 3803 TOTAL SCORE: 22953 Bonus ------- High Alert Combat Kills 389 Follower Combat Kills 1154 Hunted by Unchained 500 Registered with UFD 300 Met Optimus in HQ 500 Met Warlord at Base 500 MAIN.C Attacked Warlord 500 Friendly Fire -40 Cogmind --------- Core Integrity 0/1300 Matter 47/300 Energy 100/100 System Corruption 8% Temperature Cool (0) Movement Core (50) Location -3/Protoforge Parts ------- > --- POWER (2) -------- (None) > --- PROPULSION (8) --- (None) > --- UTILITY (8) ------ Enhanced Optical Array Improved Launcher Guidance Computer Improved Hacking Suite > --- WEAPON (3) ------- (None) > --- INVENTORY (5) ---- Centrium Medium Armor Plating Quantum Rifle Improved Remote Datajack Peak State ------------ > --- POWER ------------ Heavy Antimatter Reactor > --- PROPULSION ------- Gravmag Array Gravmag Array Antigrav System Combat Linear Gravjet Combat Linear Gravjet > --- UTILITY ---------- Large Storage Unit Makeshift Ablative Armor Makeshift Ablative Armor Improved Force Field Hacking Suite Improved Hacking Suite System Shield Advanced System Shield > --- WEAPON ----------- Vortex Lance Vortex Lance Vortex Lance > --- INVENTORY -------- Neutrino Core Gravmag Array Antigrav System Field Propulsion Array Impulse Thruster Array Centrium Medium Armor Plating Micro-nuke Launcher Vortex Catalyst Activator Improved Remote Datajack Scythe Lance [Rating: 126] Favorites ----------- Power Heavy Ion Engine Engine Heavy Ion Engine Power Core Light Fission Core Reactor Antimatter Reactor Propulsion Improved Treads Treads Improved Treads Leg Flexi-carbon Leg Hover Unit Gravmag Array Flight Unit Impulse Thruster Utility Hacking Suite Device Seismic Detector Storage Large Storage Unit Processor Advanced Signal Interpreter Hackware Hacking Suite Protection Improved Medium Armor Plating Weapon Gauss Rifle Energy Gun Vortex Rail Energy Cannon Particle Cannon Ballistic Gun Gauss Rifle Launcher Grenade Launcher Special Weapon Junk Cannon Slashing Weapon Scythe Piercing Weapon Vortex Lance Special Melee Weapon Improved Datajack Build | -11 -10 -10 -9 -9 -8 -8 -8 -8 -6 -5 -5 -5 -4 -4 -4 -4 -4 -4 -3 -3 -3 ------- Run | Yrd Mat Min Mat Min Mat Sto Rec Scr Fac Fac Upp War Pro Fac Was Fac Upp Upp Res Qua Frg Slots Evolved 14 | . . . 2 . 2 . . . 4 2 . . . 2 . . . . 2 . . Power 1 | . . . . . . . . . . . . . . . . . . . 1 . . Propulsion 6 | . . . . . . . . . 2 2 . . . 1 . . . . 1 . . Utility 6 | . . . 2 . 2 . . . 2 . . . . . . . . . . . . Weapon 1 | . . . . . . . . . . . . . . 1 . . . . . . . Parts Attached 206 | 7 8 5 23 . 18 18 1 5 36 11 4 9 3 11 1 12 5 2 21 6 . Power 26 | 1 1 . 3 . 2 3 . . 4 2 1 . 1 2 . 1 . . 4 1 . Engine 14 | 1 1 . 3 . 1 3 . . 3 . 1 . 1 . . . . . . . . Core 5 | . . . . . 1 . . . 1 2 . . . . . . . . 1 . . Reactor 7 | . . . . . . . . . . . . . . 2 . 1 . . 3 1 . Propulsion 58 | 2 2 . 6 . 2 3 . . 10 3 1 2 . 5 . 4 . 1 12 5 . Treads 20 | 2 2 . 6 . 2 3 . . 3 . . . . . . . . . 2 . . Leg 12 | . . . . . . . . . 5 . . . . . . . . . 2 5 . Wheel . | . . . . . . . . . . . . . . . . . . . . . . Hover 13 | . . . . . . . . . 2 3 1 2 . 5 . . . . . . . Flight 13 | . . . . . . . . . . . . . . . . 4 . 1 8 . . Utility 73 | 2 3 2 9 . 10 7 . 3 13 4 2 3 . 2 . 5 4 . 4 . . Device 24 | 1 1 . 2 . 1 2 . 1 7 . 1 1 . 1 . 2 4 . . . . Storage 6 | 1 1 . 1 . . . . 2 . . . . . . . . . . 1 . . Processor 14 | . . 1 2 . 2 . . . 4 2 . . . . . 1 . . 2 . . Hackware 9 | . . . . . 3 2 . . 1 1 . 1 . . . . . . 1 . . Protection 20 | . 1 1 4 . 4 3 . . 1 1 1 1 . 1 . 2 . . . . . Artifact . | . . . . . . . . . . . . . . . . . . . . . . Weapon 49 | 2 2 3 5 . 4 5 1 2 9 2 . 4 2 2 1 2 1 1 1 . . Energy Gun 3 | 1 . . . . . . . . . . . 2 . . . . . . . . . Energy Cannon 3 | . 2 1 . . . . . . . . . . . . . . . . . . . Ballistic Gun 22 | . . 1 5 . 3 1 1 . 9 2 . . . . . . . . . . . Ballistic Cannon . | . . . . . . . . . . . . . . . . . . . . . . Launcher 7 | . . 1 . . 1 2 . . . . . 1 . . . . . 1 1 . . Special Weapon 6 | 1 . . . . . . . 2 . . . . . 1 1 . 1 . . . . Impact Weapon . | . . . . . . . . . . . . . . . . . . . . . . Slashing Weapon 1 | . . . . . . 1 . . . . . . . . . . . . . . . Piercing Weapon 5 | . . . . . . . . . . . . 1 2 1 . 1 . . . . . Special Melee Weapon 2 | . . . . . . 1 . . . . . . . . . 1 . . . . . Unidentified Prototypes 12 | . . . 1 . . 2 . 1 . . . 4 . 1 . 1 . . 2 . . Corrupted Parts 1 | . . . . . . . . . 1 . . . . . . . . . . . . System Corruption 3 | . . . . . . . . . 3 . . . . . . . . . . . . Parts Lost 65 | . . . . . 1 . . . 18 2 1 . 2 2 4 . . 4 19 2 10 Power 9 | . . . . . . . . . 4 1 . . . . . . . 1 2 . 1 Propulsion 31 | . . . . . . . . . 7 . 1 . . 1 1 . . 1 13 1 6 Utility 18 | . . . . . 1 . . . 5 1 . . . 1 2 . . 2 2 1 3 Weapon 7 | . . . . . . . . . 2 . . . 2 . 1 . . . 2 . . Highest Loss Streak 8 | . . . . . 1 . . . 4 1 1 . 2 1 4 . . 2 5 1 8 To Critical Strikes 1 | . . . . . . . . . 1 . . . . . . . . . . . . Average Backups 13 | 1 10 14 14 14 14 14 15 16 10 10 13 13 12 10 10 11 13 12 8 3 3 Power 1 | . 1 1 1 1 1 1 1 1 1 1 2 1 1 1 . 1 1 1 . . . Propulsion 4 | . 5 7 6 8 7 6 7 4 . 1 3 3 3 3 3 2 2 1 . . . Utility 2 | . 1 2 3 2 2 2 2 3 . 2 1 2 4 3 1 3 4 5 3 1 1 Weapon 3 | . 1 2 2 2 2 3 4 4 6 4 5 5 4 2 4 3 4 4 3 1 1 Tool/Special . | . . . . . . . . . . . . . . . . . . . . . . Unused Backups 58 | . 1 1 3 . 2 3 . 13 15 7 1 3 . 2 . 3 2 . 1 . 1 Power 13 | . 1 1 . . . 1 . 2 2 2 . 1 . . . 1 1 . 1 . . Propulsion 12 | . . . 1 . 2 2 . 2 2 1 . 2 . . . . . . . . . Utility 20 | . . . . . . . . 7 4 4 1 . . 1 . 2 1 . . . . Weapon 11 | . . . 1 . . . . 2 6 . . . . 1 . . . . . . 1 Tool/Special 2 | . . . 1 . . . . . 1 . . . . . . . . . . . . Average Slot Usage (%) 89 | . 99 100 94 100 96 99 99 86 90 78 78 79 81 88 82 79 78 75 68 64 53 Engine 7 | . 14 14 11 11 7 7 9 9 5 . 1 5 5 . . . . . . . . Treads 14 | . 27 28 21 22 18 18 18 18 14 . . . . . . . . . 4 . . Leg 1 | . . . . . . . . . 8 . . . . . . . . . 2 16 19 Hover 3 | . . . . . . . . . . 20 23 23 23 25 24 . . . . . . Flight 1 | . . . . . . . . . . . . . . . . 20 21 20 12 9 4 Device 6 | . 9 11 16 11 10 6 . . 8 4 . 2 . 1 5 9 10 9 5 . . Storage 8 | . 14 14 11 11 9 9 9 8 6 5 5 5 5 5 5 5 5 5 3 . . Processor 2 | . . . 2 11 3 . . . 9 1 1 . . . . 4 5 5 7 14 13 Hackware 20 | . . . . . 18 27 36 36 24 22 23 23 29 24 21 16 15 15 18 17 12 Protection 5 | . 4 2 9 11 9 10 9 1 . 4 5 5 5 10 7 3 5 3 . . . Energy Cannon 3 | . 26 22 11 . . . . . . . . . . . . . . . . . . Ballistic Gun 7 | . . . 10 22 17 17 17 8 2 11 10 1 . . . . . . . . . Special Weapon 1 | . . . . . . . . 2 4 . . . . . 3 . 1 . . . . Piercing Weapon 1 | . . . . . . . . . . . . . 2 14 10 11 8 9 5 . . Peak Build Rating 126 | 7 12 12 28 23 40 40 36 40 70 90 89 103 103 126 126 124 119 116 126 107 86 Average Rating 51 | 5 11 11 22 23 31 36 35 35 56 85 84 95 102 120 115 118 117 111 98 83 65 On Entrance 62 | . 7 11 12 23 23 34 36 36 40 67 89 80 103 103 126 97 117 117 98 70 86 Avg Prop Armor Cover (%) 13 | . . . . . . . . . 10 3 . . . . . 2 . . 15 3 24 Naked Turns . | . . . . . . . . . . . . . . . . . . . . . . Heaviest Build 222 | 11 36 36 46 40 42 49 38 222 48 58 64 78 68 78 78 58 55 61 52 34 14 Greatest Support 115 | 40 46 40 46 46 46 46 43 43 83 62 62 68 68 82 79 74 55 55 70 115 115 Greatest Overweight (x) 5 | 2 . . 1 . . 1 . 5 1 1 1 1 . . . . . 1 1 1 . Average Overweight (x) . | . . . . . . . . 2 . . . . . . . . . . . . . Largest Inventory Capacity 35 | 8 15 15 15 15 15 15 15 35 15 15 15 15 15 15 15 15 15 15 15 5 5 Average Capacity 17 | 7 12 15 15 15 15 15 15 28 15 15 15 15 15 15 15 15 15 15 12 5 5 Most Carried 27 | 2 15 15 15 15 15 15 15 27 15 15 15 15 15 15 15 15 15 15 12 5 3 Average Carried 14 | 1 10 14 14 15 14 14 15 16 12 13 14 14 14 14 14 14 14 14 9 4 3 Final Capacity 15 | 8 15 15 15 15 15 15 15 15 15 15 15 15 15 15 15 15 15 15 5 5 5 Final Carried 15 | 2 15 15 15 15 15 15 15 14 15 15 14 15 14 15 12 15 15 13 5 3 3 Class Distribution -------------------- 65% | Hacker-Mutant 24% | Mutant 7% | Hacker-Sprinter Dominant Class ---------------- Mutant | -10/Materials Mutant | -10/Mines Mutant | -9/Materials Mutant | -9/Mines Hacker-Mutant | -8/Materials Hacker-Mutant | -8/Storage Hacker-Mutant | -8/Recycling Hacker-Mutant | -8/Scraptown Hacker-Mutant | -6/Factory Hacker-Mutant | -5/Factory Hacker-Mutant | -5/Upper Caves Hacker-Mutant | -5/Warlord Hacker-Mutant | -4/Proximity Caves Hacker-Mutant | -4/Factory Hacker-Mutant | -4/Waste Hacker-Sprinter | -4/Factory Hacker-Sprinter | -4/Upper Caves Hacker-Sprinter | -4/Upper Caves Hacker-Sprinter | -3/Research Hacker-Mutant | -3/Quarantine Hacker-Mutant | -3/Protoforge Resources | -11 -10 -10 -9 -9 -8 -8 -8 -8 -6 -5 -5 -5 -4 -4 -4 -4 -4 -4 -3 -3 -3 ----------- Run | Yrd Mat Min Mat Min Mat Sto Rec Scr Fac Fac Upp War Pro Fac Was Fac Upp Upp Res Qua Frg Matter Collected 6106 | 270 142 159 622 102 728 1044 28 . 890 659 130 63 142 304 . 237 65 159 350 12 . Remotely . | . . . . . . . . . . . . . . . . . . . . . . Salvage Created 10196 | 109 477 94 1414 165 1299 1458 58 . 2216 910 69 . 52 503 . 449 . 50 872 1 . Parts 512 | 13 25 12 84 12 59 78 5 . 76 42 3 . . 26 . 28 . 3 44 2 . Haulers Intercepted 17 | . 2 . 6 . 4 5 . . . . . . . . . . . . . . . Recyclers Shooed 6 | 1 . . . . 1 . . . 2 2 . . . . . . . . . . . Parts Field Recycled . | . . . . . . . . . . . . . . . . . . . . . . Retrieved Matter . | . . . . . . . . . . . . . . . . . . . . . . Parts Self-Destructed 4 | . . . . . . . . . . . 2 . . . . . . 2 . . . Prevented . | . . . . . . . . . . . . . . . . . . . . . . Parts Restored 1 | . . . . . . . . . 1 . . . . . . . . . . . . Broken 1 | . . . . . . . . . 1 . . . . . . . . . . . . Kills | -11 -10 -10 -9 -9 -8 -8 -8 -8 -6 -5 -5 -5 -4 -4 -4 -4 -4 -4 -3 -3 -3 ------- Run | Yrd Mat Min Mat Min Mat Sto Rec Scr Fac Fac Upp War Pro Fac Was Fac Upp Upp Res Qua Frg Combat Hostiles Destroyed 172 | . 9 5 25 4 13 22 1 . 39 14 1 . 5 7 . 8 . 6 13 . . Melee 25 | . . . . . . . . . . . . . . 4 . 8 . 1 12 . . Guns 72 | . . . 7 4 11 19 1 . 13 13 1 . 3 . . . . . . . . Cannons 30 | . 8 1 13 . . . . . 8 . . . . . . . . . . . . AOE 28 | . . 3 5 . 2 3 . . 3 1 . . 2 3 . . . 5 1 . . Classes Destroyed 18 | 3 4 . 4 . 2 1 . . 3 . . . . 1 . . . . . . . Worker 6 | 1 . . . . 2 . . . . . . . . 1 . . . . 2 . . Builder 10 | . . . 1 . . . . . 3 . . . . 1 . . . . 5 . . Tunneler 5 | 3 . . . 1 . . . . 1 . . . . . . . . . . . . Hauler 17 | . 2 . 6 . 4 5 . . . . . . . . . . . . . . . Recycler 15 | 1 . . . . 3 2 . . 3 2 . . . 2 . . . . 2 . . Mechanic 2 | . . . . . 1 . . . . . . . . . . . . . 1 . . Operator 5 | . . . 1 . 1 2 . . 1 . . . . . . . . . . . . Watcher 16 | . 3 . 4 . 3 1 . . 3 . . . . . . 1 . . . 1 . Swarmer 33 | . 3 3 3 1 . 4 . . 8 5 . . . . . . . 4 2 . . Cutter 3 | . . . . . . . . . . . . . . 3 . . . . . . . Grunt 69 | . 6 2 13 3 9 12 . . 14 . . . 2 1 . 1 . . 6 . . Brawler 1 | . . . 1 . . . . . . . . . . . . . . . . . . Duelist 2 | . . . . . . . . . 1 . . . 1 . . . . . . . . Sentry 25 | . . . 8 . 3 5 1 . 4 1 1 . . . . 1 . . 1 . . Demolisher 1 | . . . . . . 1 . . . . . . . . . . . . . . . Specialist 4 | . . . . . . . . . 4 . . . . . . . . . . . . Hunter 12 | . . . . . 2 . . . 4 4 . . 2 . . . . . . . . Programmer 23 | . . . . . . . . . 4 4 . . . 3 . 6 . 2 4 . . Best Kill Streak 6 | 3 4 3 6 3 5 4 1 . 6 5 1 . 2 4 . 2 . 4 6 1 . Combat Bots Only 6 | . 4 3 6 2 3 4 1 . 5 5 1 . 2 3 . 2 . 4 4 . . Max Kills in Single Turn 4 | 1 2 1 4 2 2 2 1 . 3 1 1 . 2 3 . 1 . 3 3 1 . Gunslinging . | . . . . . . . . . . . . . . . . . . . . . . Exploded 4 | . . 1 4 . 1 2 . . 3 1 . . 2 2 . . . 3 1 . . Melee 1 | . . . . . . . . . . . . . . 1 . 1 . 1 1 . . Uniques/NPCs Destroyed . | . . . . . . . . . . . . . . . . . . . . . . Combat | -11 -10 -10 -9 -9 -8 -8 -8 -8 -6 -5 -5 -5 -4 -4 -4 -4 -4 -4 -3 -3 -3 -------- Run | Yrd Mat Min Mat Min Mat Sto Rec Scr Fac Fac Upp War Pro Fac Was Fac Upp Upp Res Qua Frg Hostile Shots Fired 1384 | . 21 5 108 13 58 85 . . 394 160 16 . 50 39 5 48 5 51 180 75 71 Missed 473 | . 4 1 27 4 16 14 . . 125 34 8 . 15 15 2 30 4 22 67 55 30 Hits 911 | . 17 4 81 9 42 71 . . 269 126 8 . 35 24 3 18 1 29 113 20 41 Melee 7 | . . . . . . . . . 1 . . . 1 2 3 . . . . . . Projectile 904 | . 17 4 81 9 42 71 . . 268 126 8 . 34 22 . 18 1 29 113 20 41 AOE 12 | . . . . . . 2 . . 6 . . . . 2 . 2 . . . . . Critical Strikes 28 | . . . . . 1 2 . . 5 4 1 . 3 2 2 . . . 4 1 3 Damage Taken 17521 | . 183 34 1084 99 728 1091 . . 4398 2479 175 . 720 926 91 603 13 631 2450 528 1288 Core 3226 | . . 19 141 . 69 138 . . 752 213 43 . 85 164 29 166 . 65 588 114 640 Absorbed by Shields 275 | . . . . . . . . . 196 . . . . 31 48 . . . . . . Ignored by Resistances 34 | . . . . . . . . . . . . . . . . 31 3 . . . . Regen/Repaired (Parts) 2264 | . 106 . 43 . 151 453 . . 302 925 . 284 . . . . . . . . . Core Remaining (%) 65 | 100 . 92 . 64 . . . 62 11 . . . 65 . . . . 63 . . . Volleys Fired 543 | 16 29 6 92 12 68 90 1 1 121 56 3 . 20 3 1 . . 6 16 2 . Largest 2 | 2 2 2 2 2 2 2 2 1 2 2 2 . 2 1 1 . . 1 1 1 . Hottest 140 | 140 136 136 136 46 51 53 53 . 60 63 60 . 90 20 7 . . 49 49 20 . Shots Fired 940 | 19 58 8 180 24 126 177 2 1 171 108 7 . 32 3 1 . . 5 16 2 . Gun 674 | 16 . . 90 24 121 176 2 . 99 108 7 . 31 . . . . . . . . Cannon 149 | . 58 4 87 . . . . . . . . . . . . . . . . . . Launcher 45 | . . 4 3 . 5 1 . . 8 . . . 1 3 . . . 5 13 2 . Special 72 | 3 . . . . . . . 1 64 . . . . . 1 . . . 3 . . Kinetic 627 | . . . 90 24 121 176 2 . 99 108 7 . . . . . . . . . . Thermal 168 | 19 58 4 87 . . . . . . . . . . . . . . . . . . Explosive 39 | . . 4 3 . 5 1 . . 8 . . . . . . . . 5 13 . . Electromagnetic . | . . . . . . . . . . . . . . . . . . . . . . Impact 64 | . . . . . . . . . 64 . . . . . . . . . . . . Entropic 37 | . . . . . . . . . . . . . 32 3 . . . . . 2 . Robot Hit Streak 33 | 8 9 7 20 14 33 16 6 7 28 14 5 . 9 1 2 . . . 2 4 . Robot Miss Streak 6 | 2 4 . 4 2 3 3 . . 3 6 . . 2 1 . . . 4 1 . . Penetration Max 1 | . . . . . 1 1 . . 1 1 . . 1 . . . . . . . . Secondary Targets 8 | . . . 1 1 1 1 . . . 3 . . 1 . . . . . . . . Max Gunslinging Chain 1 | . . . 1 1 1 1 . . . 1 . . 1 . . . . . . . . Shots Hit Robots 723 | 14 33 5 122 19 97 128 2 1 129 67 5 2 23 18 2 13 . 2 39 2 . Core Hits 341 | 6 14 8 50 6 51 47 1 . 61 27 3 . 7 8 . 7 . 8 32 5 . Critical Kills 8 | . 1 1 . . 1 2 . . . 3 . . . . . . . . . . . Critical Parts Destroyed 24 | . . . 1 . 1 3 . . 14 4 . . 1 . . . . . . . . Critical Strikes 40 | . 1 1 1 . 2 5 . . 14 7 . . 1 2 . 2 . . 4 . . Meltdown 2 | . 1 1 . . . . . . . . . . . . . . . . . . . Destroy 18 | . . . 1 . 2 5 . . 3 7 . . . . . . . . . . . Smash 11 | . . . . . . . . . 11 . . . . . . . . . . . . Impale 1 | . . . . . . . . . . . . . . . . 1 . . . . . Detonate 1 | . . . . . . . . . . . . . 1 . . . . . . . . Sunder 7 | . . . . . . . . . . . . . . 2 . 1 . . 4 . . Melee Attacks 113 | . . . . . . 1 . . 1 . 1 2 . 24 1 28 . 7 48 . . Impact . | . . . . . . . . . . . . . . . . . . . . . . Slashing 4 | . . . . . . 1 . . 1 . 1 . . 1 . . . . . . . Piercing 22 | . . . . . . . . . . . . . . . . 12 . 7 3 . . Entropic 85 | . . . . . . . . . . . . . . 23 1 16 . . 45 . . Sneak Attacks 10 | . . . . . . . . . . . . 1 . 3 . 4 . . 2 . . Combat Hostiles 5 | . . . . . . . . . . . . . . . . 4 . . 1 . . Follow-up Attacks 6 | . . . . . . . . . . . . . . 4 . 2 . . . . . Damage Inflicted 27638 | 178 714 328 2545 312 2047 2772 41 . 6671 1715 107 . 1366 2389 102 1377 . 758 3820 395 1 Guns 9733 | 130 . . 900 312 1625 2536 41 . 1453 1715 107 . 914 . . . . . . . . Cannons 2117 | . 714 62 1341 . . . . . . . . . . . . . . . . . . Explosions 5341 | . . 266 304 . 422 236 . . 716 . . . 452 744 . . . 655 1152 394 . Melee 5895 | . . . . . . . . . . . . . . 1645 102 1377 . 103 2668 . . Ramming 9 | . . . . . . . . . 7 . . . . . . . . . . 1 1 Kinetic 8689 | . . . 900 312 1625 2536 41 . 1453 1715 107 . . . . . . . . . . Thermal 2428 | 178 714 62 1341 . . . . . . . . . 133 . . . . . . . . Explosive 3751 | . . 266 304 . 422 236 . . 716 . . . . . . . . 655 1152 . . Electromagnetic . | . . . . . . . . . . . . . . . . . . . . . . Impact 4495 | . . . . . . . . . 4495 . . . . . . . . . . . . Slashing . | . . . . . . . . . . . . . . . . . . . . . . Piercing 458 | . . . . . . . . . . . . . . . . 226 . 103 129 . . Entropic 7808 | . . . . . . . . . . . . . 1233 2389 102 1151 . . 2539 394 . Highest Corruption 19 | . 2 2 . . . . . . 4 7 7 4 . 7 15 17 17 19 7 7 8 Average Corruption 7 | . 2 2 . . . . . . 2 6 4 4 . 3 13 15 17 17 5 7 7 Corruption Purged 3 | . . . . . . . . . . . 3 . . . . . . . . . . Corruption Blocked . | . . . . . . . . . . . . . . . . . . . . . . Effects 185 | . 14 13 . . . . . . 4 4 8 . . 22 9 48 17 19 8 12 7 Message Errors 35 | . 2 4 . . . . . . . 1 2 . . 5 2 12 1 2 1 2 1 Matter Fused 45 | . 4 2 . . . . . . 2 . 1 . . 8 . 9 5 5 2 5 2 Heat Flow Errors 23 | . 1 . . . . . . . . 1 2 . . 2 2 7 4 1 3 . . Energy Discharges 26 | . 2 2 . . . . . . . . 1 . . 2 1 9 2 3 1 2 1 Parts Rejected 3 | . . . . . . . . . . . . . . . . . . 1 1 . 1 Parts Fused 1 | . . . . . . . . . . 1 . . . . . . . . . . . Data Loss (minor) 30 | . 2 4 . . . . . . 1 . 1 . . 4 . 7 3 3 . 3 2 Data Loss (major) 10 | . 2 . . . . . . . . . . . . 1 . 4 1 2 . . . Misfires 2 | . . . . . . . . . 1 . 1 . . . . . . . . . . Alerts 3 | . 1 1 . . . . . . . . . . . . . . 1 . . . . Misdirections 5 | . . . . . . . . . . . . . . . 4 . . 1 . . . Weapon Failures 2 | . . . . . . . . . . 1 . . . . . . . 1 . . . Overload Shots . | . . . . . . . . . . . . . . . . . . . . . . Overflow Damage 2696 | . 24 . 34 . . . . . 1715 . . . 33 277 . 337 . 57 219 . . Projectiles 1773 | . 24 . 34 . . . . . 1715 . . . . . . . . . . . . Explosions 146 | . . . . . . . . . . . . . 33 42 . . . 55 16 . . Melee 777 | . . . . . . . . . . . . . . 235 . 337 . 2 203 . . Knockbacks 23 | . . . . . . . . . 23 . . . . . . . . . . . . Impact 22 | . . . . . . . . . 22 . . . . . . . . . . . . Kinetic . | . . . . . . . . . . . . . . . . . . . . . . Secondary 1 | . . . . . . . . . 1 . . . . . . . . . . . . Self-Inflicted Damage 442 | . . . . . 35 . . . 66 . . . 41 177 . . . 86 37 . . Shots 9 | . . . . . 1 . . . 1 . . . 1 1 . . . 2 3 . . Rammed 1 | . . . . . . . . . 1 . . . . . . . . . . . . Targets Rammed 3 | . . . . . . . . . 1 . . . . . . . . . . 1 1 Kicked 2 | . . . . . . . . . . . . . . . . . . . . 1 1 Crushed . | . . . . . . . . . . . . . . . . . . . . . . Highest Temperature 390 | 40 358 174 288 37 92 137 6 . 14 381 244 3 390 200 200 266 257 158 204 . . Average Temperature 78 | 22 109 87 64 11 17 28 4 . 8 109 66 2 128 43 114 122 120 81 87 . . Received Heat Transfer 2957 | . 72 6 393 27 189 450 . . 977 72 54 . 78 27 . 42 9 45 198 66 252 Effects 14 | . 4 . . . . . . . . 5 . . 4 . . 1 . . . . . Shutdowns 3 | . . . . . . . . . . 2 . . 1 . . . . . . . . Energy Bleed 3 | . 1 . . . . . . . . . . . 1 . . 1 . . . . . Interference 8 | . 3 . . . . . . . . 3 . . 2 . . . . . . . . Siege Activations . | . . . . . . . . . . . . . . . . . . . . . . Martial Activations . | . . . . . . . . . . . . . . . . . . . . . . Shielding Activations . | . . . . . . . . . . . . . . . . . . . . . . Robots Disrupted . | . . . . . . . . . . . . . . . . . . . . . . Combat Hostiles . | . . . . . . . . . . . . . . . . . . . . . . Robots Corrupted 18 | . . . . . . . . . 18 . . . . . . . . . . . . Combat Hostiles 15 | . . . . . . . . . 15 . . . . . . . . . . . . Parts Fried 24 | . . . . . . . . . 24 . . . . . . . . . . . . Impact Corruptions 47 | . . . . . . . . . 47 . . . . . . . . . . . . Robots Melted 2 | . 1 1 . . . . . . . . . . . . . . . . . . . Combat Hostiles 2 | . 1 1 . . . . . . . . . . . . . . . . . . . Parts Melted 10 | . 2 . 6 . . . . . 1 1 . . . . . . . . . . . Heat Transferred 4163 | 400 1258 111 2294 . . . . . . . . . 100 . . . . . . . . Parts Sabotaged . | . . . . . . . . . . . . . . . . . . . . . . Parts Stolen . | . . . . . . . . . . . . . . . . . . . . . . Parts Stripped . | . . . . . . . . . . . . . . . . . . . . . . Power Chain Reactions . | . . . . . . . . . . . . . . . . . . . . . . Alert | -11 -10 -10 -9 -9 -8 -8 -8 -8 -6 -5 -5 -5 -4 -4 -4 -4 -4 -4 -3 -3 -3 ------- Run | Yrd Mat Min Mat Min Mat Sto Rec Scr Fac Fac Upp War Pro Fac Was Fac Upp Upp Res Qua Frg Maximum Alert Level 3 | . . . 2 . . 3 1 . 3 1 . . . . . . . . 2 1 1 Low Security (%) 73 | 100 100 100 64 100 100 47 64 . 49 49 . . . 100 100 100 . . 63 . 83 Level 1 17 | . . . 32 . . 11 35 . 22 50 . . . . . . . . 35 100 16 Level 2 7 | . . . 3 . . 32 . . 21 . . . . . . . . . . . . Level 3 2 | . . . . . . 8 . . 6 . . . . . . . . . . . . Level 4 . | . . . . . . . . . . . . . . . . . . . . . . Level 5 . | . . . . . . . . . . . . . . . . . . . . . . High Security . | . . . . . . . . . . . . . . . . . . . . . . Max Security . | . . . . . . . . . . . . . . . . . . . . . . Peak Influence 836 | 5 148 90 406 151 135 836 359 . 803 324 . . . 170 19 166 . . 404 348 213 Initial 320 | . . . . 150 . 5 320 . . 268 . . . . 19 . . . 31 204 195 Average 141 | . 18 10 164 57 36 318 190 . 228 199 . . . 35 5 43 . . 150 263 144 Influence Increases 9181 | 25 310 147 855 222 582 1398 235 . 1880 460 170 25 126 412 . 666 120 200 966 334 48 Destroy 0b10 Robot/C 4240 | . 180 100 500 160 260 680 60 . 940 300 20 20 100 140 . 220 . 120 440 . . Destroy 0b10 Robot/NC 410 | 25 25 . 60 5 70 55 . . 70 15 . . 5 20 . 5 . . 50 5 . Destroy Leader 1070 | . 40 20 170 30 94 184 . . 258 70 . . 20 20 . 72 . 20 70 2 . Allied During Kill 462 | . . . . 27 18 262 19 . 95 . . 5 1 . . . . . 35 . . Trap Triggered on 0b10 10 | . . . . . . 10 . . . . . . . . . . . . . . . Successful Hack 286 | . 33 . 20 . 19 24 6 . 32 24 . . . . . 77 . . . 33 18 Select Force Hacks 150 | . . . . . . . 150 . . . . . . . . . . . . . . Disable Machine 405 | . . . 45 . 75 60 . . 120 30 . . . 45 . 15 . . 15 . . Destroy Structure 413 | . 2 27 15 . 16 18 . . 35 6 . . . 52 . 12 . . 206 24 . Partial Spotted 240 | . . . 15 . 15 . . . 15 . . . . . . 105 . . 30 60 . Lose Combat Pursuer 1395 | . 30 . 30 . 15 105 . . 315 15 150 . . 135 . 60 120 60 120 210 30 Miscellaneous 100 | . . . . . . . . . . . . . . . . 100 . . . . . Influence Decreases 9148 | 25 310 147 469 608 567 591 1000 57 1332 760 233 209 127 355 57 544 242 153 649 350 363 Entered New Map 1777 | . . . . 236 . 10 502 57 . 280 93 185 1 . 38 . 46 . 16 160 153 Time Decay 5252 | 25 204 147 409 352 447 475 458 . 465 440 130 24 126 339 19 334 196 113 309 150 90 Lost Part 576 | . . . . . 10 . . . 180 20 10 . . 16 . . . 40 180 20 100 Lost Ally 687 | . . . 60 20 110 106 40 . 87 20 . . . . . 60 . . 144 20 20 Purge Threat 856 | . 106 . . . . . . . 600 . . . . . . 150 . . . . . Squads Dispatched 75 | . . . 6 . 3 6 . . 21 9 . . . 8 . 8 . 1 6 5 2 Investigation 28 | . . . 4 . 2 1 . . 4 5 . . . 5 . 4 . . 1 2 . Extermination 17 | . . . . . . . . . 5 2 . . . 2 . 4 . . 3 1 . Reinforcement 21 | . . . 2 . 1 2 . . 8 1 . . . 1 . . . . 2 2 2 Assault 2 | . . . . . . . . . 1 . . . . . . . . 1 . . . Garrison 7 | . . . . . . 3 . . 3 1 . . . . . . . . . . . Intercept . | . . . . . . . . . . . . . . . . . . . . . . Searches Triggered . | . . . . . . . . . . . . . . . . . . . . . . Construction Impeded 1 | . . . . . . . . . . . . . . . . . . . 1 . . Haulers Reinforced . | . . . . . . . . . . . . . . . . . . . . . . Active Scanning Responses . | . . . . . . . . . . . . . . . . . . . . . . Cargo Convoy Interrupts 1 | . . . . . . . . . 1 . . . . . . . . . . . . Stealth | -11 -10 -10 -9 -9 -8 -8 -8 -8 -6 -5 -5 -5 -4 -4 -4 -4 -4 -4 -3 -3 -3 --------- Run | Yrd Mat Min Mat Min Mat Sto Rec Scr Fac Fac Upp War Pro Fac Was Fac Upp Upp Res Qua Frg Distress Signals 26 | . 1 . 4 . 1 5 . . 5 1 . 1 . 1 . 3 . . 3 1 . Communications Jammed . | . . . . . . . . . . . . . . . . . . . . . . Distress Signals . | . . . . . . . . . . . . . . . . . . . . . . Times Spotted 421 | . 15 5 41 8 21 44 3 . 83 19 7 1 10 27 6 21 8 22 43 19 18 Peak Tracking Total 14 | . 3 3 7 3 3 4 2 . 12 6 6 1 4 5 6 10 5 14 13 10 14 Tactical Retreats 51 | . 2 . 2 . 1 7 . . 8 1 2 . . 5 . 1 5 2 6 7 2 Traps | -11 -10 -10 -9 -9 -8 -8 -8 -8 -6 -5 -5 -5 -4 -4 -4 -4 -4 -4 -3 -3 -3 ------- Run | Yrd Mat Min Mat Min Mat Sto Rec Scr Fac Fac Upp War Pro Fac Was Fac Upp Upp Res Qua Frg Traps Triggered 16 | . 3 . 2 . . . . . 1 1 . . . 4 . 1 . . 1 3 . Indirectly . | . . . . . . . . . . . . . . . . . . . . . . Trap Hack Attempts 38 | . . . . . . 38 . . . . . . . . . . . . . . . Triggered . | . . . . . . . . . . . . . . . . . . . . . . Disarmed 3 | . . . . . . 3 . . . . . . . . . . . . . . . Reprogrammed 5 | . . . . . . 5 . . . . . . . . . . . . . . . Reused 1 | . . . . . . 1 . . . . . . . . . . . . . . . Traps Extracted . | . . . . . . . . . . . . . . . . . . . . . . Installed . | . . . . . . . . . . . . . . . . . . . . . . Triggered 1 | . . . . . . 1 . . . . . . . . . . . . . . . Machines | -11 -10 -10 -9 -9 -8 -8 -8 -8 -6 -5 -5 -5 -4 -4 -4 -4 -4 -4 -3 -3 -3 ---------- Run | Yrd Mat Min Mat Min Mat Sto Rec Scr Fac Fac Upp War Pro Fac Was Fac Upp Upp Res Qua Frg Machines Disabled 30 | . . . 5 . 5 4 . . 8 2 . . . 3 . 1 . . 1 1 . Max in Single Turn 2 | . . . 1 . 1 1 . . 2 1 . . . 2 . 1 . . . 1 . Garrison Access 4 | . . . . . . . . . . 2 . . . 2 . . . . . . . Machines Repaired . | . . . . . . . . . . . . . . . . . . . . . . Machines Dismantled . | . . . . . . . . . . . . . . . . . . . . . . Machines Sabotaged . | . . . . . . . . . . . . . . . . . . . . . . Overloaded Fab Kills . | . . . . . . . . . . . . . . . . . . . . . . Hacking | -11 -10 -10 -9 -9 -8 -8 -8 -8 -6 -5 -5 -5 -4 -4 -4 -4 -4 -4 -3 -3 -3 --------- Run | Yrd Mat Min Mat Min Mat Sto Rec Scr Fac Fac Upp War Pro Fac Was Fac Upp Upp Res Qua Frg Machines Accessed 135 | . 11 1 14 . 13 18 11 4 19 9 . 7 . 12 . 11 1 . . 3 1 Terminals 62 | . 8 . 9 . 7 13 6 . 7 2 . . . 3 . 4 . . . 2 1 Fabricators 8 | . . . . . . . . . 2 1 . . . 2 . 3 . . . . . Repair Stations 11 | . 1 . 1 . 2 2 . . 3 1 . . . . . 1 . . . . . Recycling Units 28 | . 2 . 2 . 2 2 5 . 5 3 . . . 5 . 2 . . . . . Scanalyzers 6 | . . . 2 . 1 . . . 1 . . . . . . 1 . . . 1 . Garrison Access 7 | . . . . . 1 1 . . 1 2 . . . 2 . . . . . . . Total Hacks 406 | . 30 1 53 . 49 48 29 9 59 33 . 11 . 30 . 38 1 . . 12 3 Successful 280 | . 16 1 22 . 37 42 24 9 43 26 . 11 . 20 . 19 1 . . 8 1 Failed 122 | . 13 . 30 . 11 6 4 . 16 7 . . . 10 . 19 . . . 4 2 Catastrophic 9 | . 2 . 5 . 2 . . . . . . . . . . . . . . . . Database Lockouts 4 | . 1 . 1 . 1 . 1 . . . . . . . . . . . . . . Manual 205 | . 21 . 25 . 31 16 18 . 26 13 . . . 21 . 30 . . . 2 2 Terminals 225 | . 24 . 39 . 34 30 21 . 27 10 . . . 11 . 17 . . . 9 3 Fabricators 29 | . . . . . . . . . 4 4 . . . 9 . 12 . . . . . Repair Stations 43 | . 4 . 3 . 6 10 . . 7 12 . . . . . 1 . . . . . Recycling Units 46 | . 2 . 5 . 2 5 8 . 11 4 . . . 7 . 2 . . . . . Scanalyzers 23 | . . . 6 . 3 . . . 5 . . . . . . 6 . . . 3 . Garrison Access 18 | . . . . . 4 3 . . 5 3 . . . 3 . . . . . . . Terminal Hacks 108 | . 5 1 8 . 14 17 10 9 11 3 . 11 . 5 . 6 1 . . 6 1 Record 17 | . . . . . . 2 2 7 . . . 6 . . . . . . . . . Part Schematic 8 | . . . . . 2 2 4 . . . . . . . . . . . . . . Robot Schematic 2 | . . . . . . . 2 . . . . . . . . . . . . . . Robot Analysis 12 | . 2 . 1 . 4 1 2 . . 1 . . . . . 1 . . . . . Prototype ID Bank 11 | . 1 . 2 . 2 1 . . 1 . . 4 . . . . . . . . . Open Door 10 | . . 1 . . . 6 . 1 . . . 1 . . . . 1 . . . . Open DSF 1 | . . . . . . . . . . . . . . 1 . . . . . . . Level Access Points 1 | . . . . . . . . . . . . . . . . . . . . 1 . Branch Access Points 5 | . . . 1 . . . . . . 1 . . . 1 . 1 . . . 1 . Emergency Access Points 5 | . . . 1 . 1 . . . . 1 . . . 1 . . . . . 1 . Machine Index 1 | . . . . . . . . . 1 . . . . . . . . . . . . Terminal Index 5 | . . . . . 1 1 . . 1 . . . . 1 . 1 . . . . . Repair Station Index 1 | . . . . . . . . . . . . . . 1 . . . . . . . Scanalyzer Index 1 | . . . . . . 1 . . . . . . . . . . . . . . . Alert Level 1 | . . . . . . . . . 1 . . . . . . . . . . . . Unreport Threat 7 | . 1 . . . . . . . 4 . . . . . . 2 . . . . . Locate Traps 8 | . 1 . 1 . . 2 . . 1 . . . . . . 1 . . . 1 1 Transport Status 1 | . . . . . 1 . . . . . . . . . . . . . . . . Recall Investigation 2 | . . . 2 . . . . . . . . . . . . . . . . . . Hauler Manifests 2 | . . . . . . 1 . . 1 . . . . . . . . . . . . Registered Components 2 | . . . . . 1 . . . 1 . . . . . . . . . . . . Registered Prototypes 2 | . . . . . 1 . . . . . . . . . . . . . . 1 . Zone Layout 2 | . . . . . 1 . . . . . . . . . . . . . . 1 . Proto ID Catalog 1 | . . . . . . . . 1 . . . . . . . . . . . . . Fabricator Hacks 1 | . . . . . . . . . . . . . . 1 . . . . . . . Build 1 | . . . . . . . . . . . . . . 1 . . . . . . . Repair Station Hacks 38 | . 4 . 2 . 6 10 . . 6 10 . . . . . . . . . . . Scan Component 19 | . 2 . 1 . 3 5 . . 3 5 . . . . . . . . . . . Repair 19 | . 2 . 1 . 3 5 . . 3 5 . . . . . . . . . . . Recycling Unit Hacks 16 | . 1 . 1 . 2 2 3 . 5 . . . . 2 . . . . . . . Report Inventory 1 | . . . . . . . . . 1 . . . . . . . . . . . . Retrieve Matter 1 | . 1 . . . . . . . . . . . . . . . . . . . . Retrieve Components 14 | . . . 1 . 2 2 3 . 4 . . . . 2 . . . . . . . Scanalyzer 16 | . . . 4 . 3 . . . 5 . . . . . . 2 . . . 2 . Insert Component 1 | . . . 1 . . . . . . . . . . . . . . . . . . Analyze 1 | . . . 1 . . . . . . . . . . . . . . . . . . Retrieve Study 14 | . . . 2 . 3 . . . 5 . . . . . . 2 . . . 2 . Garrison Access Hacks 7 | . . . . . 1 1 . . 1 2 . . . 2 . . . . . . . Unlock Access 3 | . . . . . 1 1 . . 1 . . . . . . . . . . . . Seal Access 4 | . . . . . . . . . . 2 . . . 2 . . . . . . . Unauthorized Hacks 94 | . 6 . 7 . 11 12 11 . 15 11 . . . 10 . 11 . . . . . Terminals 49 | . 6 . 7 . 8 7 6 . 7 5 . . . 1 . 2 . . . . . Assimilate 2 | . . . . . 1 . . . 1 . . . . . . . . . . . . Botnet 6 | . . . . . . . . . 1 2 . . . 1 . 2 . . . . . Disrupt 2 | . . . . . 1 1 . . . . . . . . . . . . . . . Operators 4 | . 1 . 1 . 1 . . . . 1 . . . . . . . . . . . Skim 35 | . 5 . 6 . 5 6 6 . 5 2 . . . . . . . . . . . Fabricators 16 | . . . . . . . . . 2 2 . . . 5 . 7 . . . . . Report 2 | . . . . . . . . . . . . . . 1 . 1 . . . . . Liberate 7 | . . . . . . . . . 1 1 . . . 2 . 3 . . . . . Fabnet 7 | . . . . . . . . . 1 1 . . . 2 . 3 . . . . . Repair Stations 1 | . . . . . . . . . . 1 . . . . . . . . . . . Mechanics 1 | . . . . . . . . . . 1 . . . . . . . . . . . Recycling Units 21 | . . . . . . 3 5 . 4 3 . . . 4 . 2 . . . . . Reject 1 | . . . . . . 1 . . . . . . . . . . . . . . . Mask 3 | . . . . . . 2 . . 1 . . . . . . . . . . . . Tunnel 5 | . . . . . . . 5 . . . . . . . . . . . . . . Fedlink 12 | . . . . . . . . . 3 3 . . . 4 . 2 . . . . . Scanalyzers . | . . . . . . . . . . . . . . . . . . . . . . Garrison Access 7 | . . . . . 3 2 . . 2 . . . . . . . . . . . . Broadcast 1 | . . . . . 1 . . . . . . . . . . . . . . . . Redirect 1 | . . . . . . . . . 1 . . . . . . . . . . . . Reprogram 3 | . . . . . 1 1 . . 1 . . . . . . . . . . . . Watchers 2 | . . . . . 1 1 . . . . . . . . . . . . . . . Data Cores Recovered . | . . . . . . . . . . . . . . . . . . . . . . Used . | . . . . . . . . . . . . . . . . . . . . . . Hacking Detections 82 | . 10 . 13 . 11 9 4 . 15 5 . . . 5 . 6 . . . 3 1 Full Trace Events 5 | . 1 . 2 . 1 . 1 . . . . . . . . . . . . . . Feedback Events . | . . . . . . . . . . . . . . . . . . . . . . Feedback Blocked . | . . . . . . . . . . . . . . . . . . . . . . Robot Schematics Acquired 2 | . . . . . . . 2 . . . . . . . . . . . . . . Robots Built . | . . . . . . . . . . . . . . . . . . . . . . Authchips . | . . . . . . . . . . . . . . . . . . . . . . Time . | . . . . . . . . . . . . . . . . . . . . . . Total Robot Build Rating . | . . . . . . . . . . . . . . . . . . . . . . Part Schematics Acquired 9 | . . . 1 . 2 2 4 . . . . . . . . . . . . . . Parts Built 1 | . . . . . . . . . . . . . . 1 . . . . . . . Authchips . | . . . . . . . . . . . . . . . . . . . . . . Time 64 | . . . . . . . . . . . . . . 64 . . . . . . . Total Part Build Rating 8 | . . . . . . . . . . . . . . 8 . . . . . . . Part Studies Acquired 14 | . . . 2 . 3 . . . 5 . . . . . . 2 . . . 2 . Parts Repaired 19 | . 2 . 1 . 3 5 . . 3 5 . . . . . . . . . . . Time 797 | . 64 . 26 . 126 231 . . 88 262 . . . . . . . . . . . Parts Recycled . | . . . . . . . . . . . . . . . . . . . . . . Recycled Matter . | . . . . . . . . . . . . . . . . . . . . . . Retrieved Matter 70 | . 70 . . . . . . . . . . . . . . . . . . . . Retrieved Components 74 | . . . 2 . 18 20 13 . 20 . . . . 1 . . . . . . . Parts Scanalyzed 1 | . . . 1 . . . . . . . . . . . . . . . . . . Part Schematics Acquired 1 | . . . 1 . . . . . . . . . . . . . . . . . . Parts Damaged . | . . . . . . . . . . . . . . . . . . . . . . Bothacking | -11 -10 -10 -9 -9 -8 -8 -8 -8 -6 -5 -5 -5 -4 -4 -4 -4 -4 -4 -3 -3 -3 ------------ Run | Yrd Mat Min Mat Min Mat Sto Rec Scr Fac Fac Upp War Pro Fac Was Fac Upp Upp Res Qua Frg Used RIF Installer . | . . . . . . . . . . . . . . . . . . . . . . Robots Hacked 12 | . . . . . . . . . . . . 1 . . . . . . 9 1 1 Non-combat . | . . . . . . . . . . . . . . . . . . . . . . Combat 12 | . . . . . . . . . . . . 1 . . . . . . 9 1 1 Robot Hacks Applied 2 | . . . . . . . . . . . . 1 . . . . . . 1 . . parse_system 2 | . . . . . . . . . . . . 1 . . . . . . 1 . . Manual 1 | . . . . . . . . . . . . . . . . . . . 1 . . Relay Couplers Released 3 | . . . . . . . . . . 3 . . . . . . . . . . . Machine Destruction 3 | . . . . . . . . . . 3 . . . . . . . . . . . Fabnet Peak Effective % 15 | . . . . . . . . . . . . . . . . . . . 15 15 15 Autooverrided 10 | . . . . . . . . . . . . . . . . . . . 8 1 1 Robots Rewired 5 | . . . . . . . . . . . . 5 . . . . . . . . . Allies Hacked . | . . . . . . . . . . . . . . . . . . . . . . Hacks Repelled . | . . . . . . . . . . . . . . . . . . . . . . Allies | -11 -10 -10 -9 -9 -8 -8 -8 -8 -6 -5 -5 -5 -4 -4 -4 -4 -4 -4 -3 -3 -3 -------- Run | Yrd Mat Min Mat Min Mat Sto Rec Scr Fac Fac Upp War Pro Fac Was Fac Upp Upp Res Qua Frg Total Allies 44 | . . . . 3 4 11 . 1 4 2 . 5 . . . 3 . . 9 1 1 Largest Group 10 | . . . . 3 4 10 6 5 5 1 . 5 3 . . 3 . . 3 1 1 Highest-Rated Group 305 | . . . . 40 58 173 95 159 159 76 . 221 131 . . 141 . . 305 47 64 Highest-Rated Ally 142 | . . . . 16 16 29 16 95 95 76 . 49 49 . . 47 . . 142 47 64 Initial UFD Resources 86 | . . . . . . . . . 22 41 57 57 60 60 78 78 82 82 86 86 86 Total Orders 38 | . . . 4 . 12 2 8 2 10 . . . . . . . . . . . . STAY 10 | . . . . . . . 4 1 5 . . . . . . . . . . . . FOLLOW 10 | . . . . . . . 4 1 5 . . . . . . . . . . . . EXPLORE 15 | . . . 1 . 12 2 . . . . . . . . . . . . . . . RETURN 3 | . . . 3 . . . . . . . . . . . . . . . . . . Ally Attacks 257 | . . . 4 22 12 72 13 . 59 8 . 4 12 . . 7 . . 40 3 1 Total Damage 5859 | . . . . 208 12 1053 176 . 1946 206 . 134 318 . . 217 . . 1483 57 49 Kills 47 | . . . . 4 . 13 2 . 12 2 . 1 1 . . 3 . . 9 . . Allies Corrupted 2 | . . . . . . . . . . . . . . . . . . . 2 . . Allies Melted 2 | . . . . . . . . . 1 . . 1 . . . . . . . . . Intel | -11 -10 -10 -9 -9 -8 -8 -8 -8 -6 -5 -5 -5 -4 -4 -4 -4 -4 -4 -3 -3 -3 ------- Run | Yrd Mat Min Mat Min Mat Sto Rec Scr Fac Fac Upp War Pro Fac Was Fac Upp Upp Res Qua Frg Active Infowar (turns) 14229 | 87 1017 969 2274 1025 1993 1044 . . 1993 460 . . . . . 1134 424 406 901 318 184 Optics 1162 | . . . . . . . . . 155 22 . . . . . . . . 483 318 184 Sensors 5900 | . . . . . 325 1044 . . 1842 . . . . . . 1134 424 406 725 . . IFF 613 | . . . . . . . . . 153 460 . . . . . . . . . . . Seismic 7383 | 87 1017 969 2274 1025 1993 18 . . . . . . . . . . . . . . . T.N.C. 142 | . . . . . 142 . . . . . . . . . . . . . . . . Robot Analysis Total 12 | . 2 . 1 . 4 1 2 . . 1 . . . . . 1 . . . . . Derelict Logs Recovered 5 | . . 1 . 1 . . . . . . . . 2 . . . 1 . . . . Drone Launches 21 | . . . 7 . 12 2 . . . . . . . . . . . . . . . Drone Recoveries 3 | . . . 3 . . . . . . . . . . . . . . . . . . Exploration | -11 -10 -10 -9 -9 -8 -8 -8 -8 -6 -5 -5 -5 -4 -4 -4 -4 -4 -4 -3 -3 -3 ------------- Run | Yrd Mat Min Mat Min Mat Sto Rec Scr Fac Fac Upp War Pro Fac Was Fac Upp Upp Res Qua Frg Turns Passed 30637 | 193 1533 1156 3196 1025 1993 2456 1155 6841 3082 1086 272 1058 734 1381 99 1142 426 406 901 318 184 Spaces Moved 17153 | 77 729 631 1164 583 864 857 667 2323 1454 587 338 811 539 1476 143 1358 782 529 696 358 187 Core 37 | 8 . . . . . . . . . . . . . . . . . . . . 29 Treads 8697 | 69 729 631 1164 583 864 857 667 2323 785 . . . . . . . . . 25 . . Legs 953 | . . . . . . . . . 431 . . . . . . . . . 148 216 158 Wheels . | . . . . . . . . . . . . . . . . . . . . . . Hover 4182 | . . . . . . . . . 238 587 338 811 539 1476 143 50 . . . . . Flight 3284 | . . . . . . . . . . . . . . . . 1308 782 529 523 142 . Fastest Speed 26 | 50 160 160 160 160 145 145 165 165 56 48 48 48 49 45 45 32 32 31 26 29 50 Average Speed 126 | 155 160 160 189 160 146 168 165 286 132 50 48 73 49 45 45 32 32 32 62 81 96 Slowest Speed 465 | 160 160 160 240 160 160 200 165 465 175 106 105 113 49 49 52 52 32 111 175 120 105 Overloaded Moves 40 | . . . . . . . . . . . . . . . . . . . 5 35 . Propulsion Burnouts . | . . . . . . . . . . . . . . . . . . . . . . Robots Hopped 2 | . . . . . . . . . . . . . . . . . . . 2 . . Potential Cave-ins 5 | . . . . . . . . . . . . 5 . . . . . . . . . Cave-ins Triggered . | . . . . . . . . . . . . . . . . . . . . . . Exploration Rate (%) 63 | 4 96 98 90 96 79 96 98 88 40 12 48 87 69 30 84 29 80 75 29 56 18 Regions Visited 21 Branch Regions 12 Pre-discovered Areas 24 | . 1 1 3 2 2 2 6 . 5 . . . 2 . . . . . . . . Known Exits Taken 14 | . . 1 1 . 1 1 1 1 1 1 . . 1 . . 1 1 1 1 1 . Unknown Exits Taken 5 | 1 1 . . 1 . . . . . . 1 1 . . . . . . . . . Scrap Searched 16 | . . 1 . 1 . . . 8 . . 1 . 2 . . . 3 . . . . Spaces Dug 11 | . . . . . . . . . . . 1 . . 1 . 6 . 2 1 . . Terrain Destroyed 548 | 1 . 28 8 . 18 12 . . 41 2 1 . 78 28 . 6 . 116 185 24 . Melee 11 | . . . . . . . . . . . 1 . . 1 . 6 . 2 1 . . Projectile 55 | 1 . . . . . . . . 9 2 . . 43 . . . . . . . . AOE 481 | . . 28 8 . 18 12 . . 31 . . . 35 27 . . . 114 184 24 . Terrain Rammed . | . . . . . . . . . . . . . . . . . . . . . . Walls Destroyed . | . . . . . . . . . . . . . . . . . . . . . . Machines Disabled . | . . . . . . . . . . . . . . . . . . . . . . Actions | -11 -10 -10 -9 -9 -8 -8 -8 -8 -6 -5 -5 -5 -4 -4 -4 -4 -4 -4 -3 -3 -3 --------- Run | Yrd Mat Min Mat Min Mat Sto Rec Scr Fac Fac Upp War Pro Fac Was Fac Upp Upp Res Qua Frg Total 25129 | 123 1038 768 1985 656 1483 1710 720 2527 2436 1267 438 1277 976 2162 173 2030 955 748 1090 377 190 Wait 6584 | 21 247 109 671 60 492 663 49 132 768 576 85 408 413 609 25 600 164 193 292 5 2 Move 17130 | 76 728 630 1163 582 863 856 666 2322 1454 586 337 810 538 1476 142 1356 781 528 692 357 187 Hop 1 | . . . . . . . . . . . . . . . . . . . 1 . . Pick Up 168 | 3 17 2 7 1 11 10 . 40 23 13 1 7 . 11 . 14 . 3 5 . . Fast Attach 130 | 6 3 5 7 . 13 10 2 4 14 11 2 8 . 10 . 8 1 . 16 10 . Attach 75 | 1 3 . 1 . 3 1 . 3 24 2 2 . 3 9 2 4 . 6 10 1 . Detach 22 | . 1 . 1 . . . . . 6 . 2 1 1 3 . 3 . 2 2 . . Swap 108 | . 5 8 21 . 10 22 . . 6 9 2 6 1 7 1 2 6 1 1 . . Drop 202 | . 5 8 22 1 23 19 2 25 19 14 3 16 . 15 . 17 3 2 7 1 . Fire 543 | 16 29 6 92 12 68 90 1 1 121 56 3 . 20 3 1 . . 6 16 2 . Melee 105 | . . . . . . 1 . . 1 . 1 2 . 19 1 25 . 7 48 . . Ram 1 | . . . . . . . . . . . . . . . 1 . . . . . . Kick 2 | . . . . . . . . . . . . . . . . . . . . 1 1 Crush . | . . . . . . . . . . . . . . . . . . . . . . Escape Stasis 1 | . . . . . . . . . . . . . . . . 1 . . . . . Rewire 19 | . . . . . . . . . . . . 19 . . . . . . . . . Trap 38 | . . . . . . 38 . . . . . . . . . . . . . . . Miscellaneous . | . . . . . . . . . . . . . . . . . . . . . . Route ------- -11/Scrapyard -10/Materials (discovered 5 exits: *Mat x3 / *Min / Sub) -10/Mines (discovered 3 exits: *Mat x2 / *Sub) -9/Materials (discovered 2 exits: *Mat / *Min) -9/Mines (discovered 4 exits: *Mat x2 / [*Exi] / [*Zio]) -8/Materials (discovered 5 exits: *Fac x2 / *Sto x2 / Gar) -8/Storage (discovered 3 exits: *Fac / *Rec / Gar) -8/Recycling (discovered 2 exits: *Fac / *Scr) -8/Scraptown (discovered 2 exits: *Fac x2) -6/Factory (discovered 9 exits: *Fac x4 / *Low x2 / *Ext x2 / Gar) -5/Factory (discovered 5 exits: Fac x3 / *Upp x2) -5/Upper Caves -5/Warlord -4/Proximity Caves -4/Factory (discovered 4 exits: *Res / Upp x2 / Arm) -4/Waste -4/Factory (discovered 4 exits: *Res / *Upp x2 / Arm) -4/Upper Caves -4/Upper Caves -3/Research (discovered 2 exits: Res / *Qua) -3/Quarantine (discovered 3 exits: Res / [*Sec] / *Frg) -3/Protoforge History --------- Turn | Location | Event 11 | -11/Scrapyard | Discovered new exit (range 16) 194 | -11/Scrapyard | Entered Materials 308 | -10/Materials | Build established: Mutant 480 | -10/Materials | Discovered new exit (range 16) 643 | -10/Materials | Discovered new exit (range 10) 664 | -10/Materials | Learned location of 1 exit from Recycling 760 | -10/Materials | Learned 2 Storage zone layouts 773 | -10/Materials | Learned Storage stockpile data 778 | -10/Materials | Learned 4 Recycling zone layouts 779 | -10/Materials | Discovered new exit (range 4) 791 | -10/Materials | Identified exit to Materials 791 | -10/Materials | Identified exit to Subcaves 908 | -10/Materials | Central database locked down 1602 | -10/Materials | Repaired Imp. Treads 1635 | -10/Materials | Repaired Imp. Treads 1727 | -10/Materials | Entered Mines 1797 | -10/Mines | Discovered exit to Subcaves (range 6) 1864 | -10/Mines | Found the Drone Emporium 1876 | -10/Mines | Found Prototype Device 2203 | -10/Mines | Discovered exit to Materials (range 7) 2427 | -10/Mines | Discovered exit to Materials (range 6) 2505 | -10/Mines | Learned location of Zion (-7) 2635 | -10/Mines | Joined a pair of Derelicts in attacking an 0b10 outpost 2883 | -10/Mines | Entered Materials 2883 | -9/Materials | Evolved 2 slots: Utility x2 2883 | -9/Materials | Identified Bomb Drone Bay 3804 | -9/Materials | Discovered new exit (range 6) 5051 | -9/Materials | Discovered new exit (range 15) 5126 | -9/Materials | Repaired Lgt. Treads+ 5333 | -9/Materials | Central database locked down 5382 | -9/Materials | Identified exit to Mines 5733 | -9/Materials | Learned Storage trap positions 5964 | -9/Materials | Learned Storage security intel 5997 | -9/Materials | Learned Storage stockpile data 6040 | -9/Materials | Learned Storage trap positions 6079 | -9/Materials | Entered Mines 6203 | -9/Mines | Assisted by bots powering up and referring to "LRC-V3" 6416 | -9/Mines | A Derelict revealed a hidden shortcut to a safe place 6456 | -9/Mines | Deemed a non-threat by the Exiles lab entrance 6505 | -9/Mines | Received a Rocket Launcher from a helpful Derelict 6567 | -9/Mines | Discovered new exit (range 15) 6662 | -9/Mines | Discovered new exit (range 7) 6869 | -9/Mines | Learned location of Storage (-8) 6961 | -9/Mines | Discovered new exit (range 5) 7104 | -9/Mines | Entered Materials 7104 | -8/Materials | Accompanied by 2 allies 7104 | -8/Materials | Evolved 2 slots: Utility x2 7105 | -8/Materials | Identified exit to Storage 7745 | -8/Materials | Discovered new exit (range 93) 8086 | -8/Materials | Repaired Gauss Rifle 8125 | -8/Materials | Repaired Insulated Plating 8216 | -8/Materials | Discovered new exit (range 16) 8293 | -8/Materials | Central database locked down 8297 | -8/Materials | Build established: Hacker-Mutant 8609 | -8/Materials | Learned Storage terminal intel 8614 | -8/Materials | Identified exit to Garrison 8663 | -8/Materials | Learned Storage trap positions 8759 | -8/Materials | Repaired Imp. Medium Armor Plating 8779 | -8/Materials | Learned Storage stockpile data 8806 | -8/Materials | Learned location of Recycling (-8) 8876 | -8/Materials | Learned Storage trap positions 9097 | -8/Materials | Entered Storage 9097 | -8/Storage | Accompanied by 3 allies 9098 | -8/Storage | Identified exit to Factory 9099 | -8/Storage | Identified exit to Recycling 9100 | -8/Storage | Loaded intel: 14 trap records 9103 | -8/Storage | Loaded intel: 16 terminal locations 9274 | -8/Storage | Lost 3 allies 9453 | -8/Storage | Found Prototype Launcher 9454 | -8/Storage | Identified Scatter Rocket Array 10026 | -8/Storage | Used back door to open Recycling access 10490 | -8/Storage | Assisted by bots powering up and referring to "LRC-V3" 10514 | -8/Storage | Garrison activated, responded to threat 10605 | -8/Storage | Identified exit to Garrison 10841 | -8/Storage | Watched by a mysterious "MATRIX" hacker 10916 | -8/Storage | Learned location of 1 exit from Lower Caves 10955 | -8/Storage | Learned location of 1 exit from Storage 11005 | -8/Storage | Learned 4 Recycling zone layouts 11018 | -8/Storage | Learned location of Extension (-6) 11019 | -8/Storage | Learned Factory emergency access door positions 11033 | -8/Storage | Learned location of 1 exit from Storage 11074 | -8/Storage | Repaired Adv. Treads+ 11145 | -8/Storage | Repaired Enh. Autogun 11190 | -8/Storage | Repaired Gauss Rifle 11230 | -8/Storage | Repaired Adv. Treads+ 11282 | -8/Storage | Repaired Hvy. Ion Engine 11553 | -8/Storage | Entered Recycling 11553 | -8/Recycling | Accompanied by 6 allies 11554 | -8/Recycling | Identified exit to Factory 11555 | -8/Recycling | Identified exit to Scraptown 12107 | -8/Recycling | Learned location of 3 exits from Factory 12174 | -8/Recycling | Learned location of 2 exits from Lower Caves 12232 | -8/Recycling | Learned Storage stockpile data 12270 | -8/Recycling | Scanned before Scraplab entrance 12281 | -8/Recycling | Learned location of 1 exit from Lower Caves 12321 | -8/Recycling | Learned location of 2 exits from Factory 12432 | -8/Recycling | Learned location of Lower Caves (-7) 12686 | -8/Recycling | Entered Scraplab 12708 | -8/Recycling | Entered Scraptown 12708 | -8/Scraptown | Accompanied by 4 allies 12946 | -8/Scraptown | Visited UFD Registry 12946 | -8/Scraptown | Registered with UFD as "Microkit" 12959 | -8/Scraptown | Visited Spacefarers 12989 | -8/Scraptown | Visited Junk Repository 13045 | -8/Scraptown | Visited Symbiants 13093 | -8/Scraptown | Visited Bundlers 13679 | -8/Scraptown | Visited Curators Association 13728 | -8/Scraptown | Visited Junk Cannon Lab 13791 | -8/Scraptown | Visited Science Guys 13835 | -8/Scraptown | Visited Sword Containment 13867 | -8/Scraptown | Visited Scrapoid Pod Storage 13896 | -8/Scraptown | Visited LU-1G1's Boring Crew 14551 | -8/Scraptown | Visited Infowarlord's Domain 14624 | -8/Scraptown | Visited Scrap Suit Storage 14681 | -8/Scraptown | Visited Botcube Research 14713 | -8/Scraptown | Found Lrg. Botcube 14868 | -8/Scraptown | Visited Science Testing Area 15699 | -8/Scraptown | Found Scrap Suit 16496 | -8/Scraptown | Visited Junk Repository 17262 | -8/Scraptown | Lrg. Botcube activated 17296 | -8/Scraptown | Lrg. Botcube completed mutation into treaded form, armed with 4 guns 17487 | -8/Scraptown | Found Prototype Special Weapon 17487 | -8/Scraptown | Identified Junk Cannon 17713 | -8/Scraptown | Attached CPS modules to *Bob. Second of his Name 19416 | -8/Scraptown | Met Optimus 19416 | -8/Scraptown | Accepted into 0bPrime 19549 | -8/Scraptown | Entered Factory 19549 | -6/Factory | Accompanied by 5 allies 19549 | -6/Factory | Evolved 4 slots: Propulsion x2, Utility x2 19550 | -6/Factory | Identified exit to Factory 19550 | -6/Factory | Identified exit to Lower Caves 19551 | -6/Factory | Identified exit to Extension 19762 | -6/Factory | Loaded intel: 8 recycling unit locations 20087 | -6/Factory | Repaired Gauss Rifle 20485 | -6/Factory | Repaired Gauss Rifle 20718 | -6/Factory | Garrison activated, responded to threat 20732 | -6/Factory | Identified exit to Garrison 20819 | -6/Factory | Cargo convoy interrupted 20968 | -6/Factory | Learned location of Protoforge (-3) 21111 | -6/Factory | Lost 3 parts (1n1u1w) 21243 | -6/Factory | Found Lrg. Botcube 21299 | -6/Factory | First assault squad dispatched 21311 | -6/Factory | Lost 4 parts (3n1u) 21648 | -6/Factory | Core integrity fell below 50% 22138 | -6/Factory | Lost 3 parts (1p1n1u) 22382 | -6/Factory | Lost 4 parts (1p1n1u1w) 22523 | -6/Factory | Learned Hub_04(d) emergency access door positions 22560 | -6/Factory | Repaired Imp. Medium Armor Plating 22583 | -6/Factory | Learned Hub_04(d) emergency access door positions 22585 | -6/Factory | Learned Extension stockpile data 22586 | -6/Factory | Learned location of 2 exits from Archives 22587 | -6/Factory | Learned 2 Lower Caves zone layouts 22588 | -6/Factory | Learned location of 1 exit from Cetus 22601 | -6/Factory | Learned location of Upper Caves (-5) 22609 | -6/Factory | Core integrity fell below 20% 22631 | -6/Factory | Entered another Factory area 22631 | -5/Factory | Evolved 2 slots: Propulsion x2 22632 | -5/Factory | Identified exit to Factory 22633 | -5/Factory | Identified exit to Upper Caves 22721 | -5/Factory | Loaded intel: 8 recycling unit locations 23100 | -5/Factory | Lrg. Botcube activated 23124 | -5/Factory | Lrg. Botcube completed mutation into legged form, armed with 4 guns 23307 | -5/Factory | Repaired Lyr. Heavy Armor Plating 23359 | -5/Factory | Repaired Gravmag Array 23416 | -5/Factory | Repaired Antigrav System 23468 | -5/Factory | Repaired Lgt. Fission Core 23469 | -5/Factory | Targeted by mysterious "MATRIX" hacker 23519 | -5/Factory | Repaired Hvy. Machine Gun+ 23633 | -5/Factory | Lrg. Botcube activated 23717 | -5/Factory | Entered Upper Caves 23739 | -5/Upper Caves | Attracted the attention of an 0b10 checkpoint 23865 | -5/Upper Caves | Spotted B-75 Beast 23989 | -5/Upper Caves | A Derelict revealed a hidden shortcut to "reach the base" 23989 | -5/Upper Caves | Entered Warlord 24005 | -5/Warlord | System corruption cleaned by Quarantine Array 24140 | -5/Warlord | Rebuked by Warlord 24150 | -5/Warlord | Warlord's base attacked by MAIN.C 24228 | -5/Warlord | Found Prototype Piercing Weapon 24228 | -5/Warlord | Identified Vortex Lance 24231 | -5/Warlord | Found Prototype Launcher 24231 | -5/Warlord | Identified Vortex Catalyst Activator 24237 | -5/Warlord | Found Prototype Energy Gun 24237 | -5/Warlord | Identified Vortex Rail 24239 | -5/Warlord | Found Vortex Rail 24246 | -5/Warlord | Found Vortex Lance 24249 | -5/Warlord | Found Vortex Lance 24251 | -5/Warlord | Found Vortex Lance 24366 | -5/Warlord | Found Prototype Device 24366 | -5/Warlord | Identified Minesniffer Drone Bay 24500 | -5/Warlord | Warlord forces counterattacked 24825 | -5/Warlord | Warlord base infiltrated, sounded retreat 24826 | -5/Warlord | Enhanced Grunt warped into view 24826 | -5/Warlord | Enhanced Grunt warped into view 24826 | -5/Warlord | Enhanced Grunt warped into view 24826 | -5/Warlord | Enhanced Demolisher warped into view 24826 | -5/Warlord | Enhanced Demolisher warped into view 24826 | -5/Warlord | Enhanced Demolisher warped into view 25003 | -5/Warlord | Discovered new exit (range 15) 25021 | -5/Warlord | Lost 4 allies 25047 | -5/Warlord | Entered Proximity Caves 25047 | -4/Proximity Caves | Accompanied by 3 allies 25336 | -4/Proximity Caves | Lost 3 allies 25402 | -4/Proximity Caves | Learned location of Armory (-4) 25617 | -4/Proximity Caves | Received a Behemoth hack from an annoying Tinkerer 25771 | -4/Proximity Caves | Spotted B-86 Titan 25777 | -4/Proximity Caves | Discovered exit to Factory (range 11) 25779 | -4/Proximity Caves | Attracted the attention of an 0b10 checkpoint 25781 | -4/Proximity Caves | Entered Factory 25781 | -4/Factory | Evolved 2 slots: Propulsion x1, Weapon x1 25958 | -4/Factory | Fabricated Impulse Thruster Array (x1) 26008 | -4/Factory | Identified exit to DSF 26126 | -4/Factory | Loaded intel: 8 recycling unit locations 26594 | -4/Factory | Identified exit to Upper Caves 26594 | -4/Factory | Identified exit to Armory 27126 | -4/Factory | Discovered new exit (range 12) 27162 | -4/Factory | Manually triggered Chute Trap 27162 | -4/Factory | Sucked down chute 27162 | -4/Factory | Entered Waste 27170 | -4/Waste | Spotted C-40 Crusher 27177 | -4/Waste | EMP discharged 27177 | -4/Waste | System corruption reached 10% 27190 | -4/Waste | Spotted C-40 Crusher 27192 | -4/Waste | Spotted C-40 Crusher 27192 | -4/Waste | Spotted C-40 Crusher 27194 | -4/Waste | Discovered new exit (range 16) 27202 | -4/Waste | Spotted C-40 Crusher 27233 | -4/Waste | Spotted C-40 Crusher 27238 | -4/Waste | Crushed by Compactor (1 part destroyed) 27239 | -4/Waste | Crushed by Compactor (1 part destroyed, 1 dropped) 27241 | -4/Waste | Crushed by Compactor (1 part destroyed, 1 dropped) 27261 | -4/Waste | Entered Factory 27272 | -4/Factory | Lost 4 parts (1n2u1w) 27544 | -4/Factory | Build established: Hacker-Sprinter 27547 | -4/Factory | Discovered new exit (range 6) 27549 | -4/Factory | Identified exit to Research 28048 | -4/Factory | Loaded intel: 8 recycling unit locations 28403 | -4/Factory | Entered Upper Caves 28439 | -4/Upper Caves | Attracted the attention of an 0b10 outpost 28611 | -4/Upper Caves | Attracted the attention of an 0b10 checkpoint 28795 | -4/Upper Caves | Discovered new exit (range 11) 28798 | -4/Upper Caves | Identified exit to Upper Caves 28807 | -4/Upper Caves | Learned 8 Research zone layouts 28829 | -4/Upper Caves | Entered another Upper Caves area 28846 | -4/Upper Caves | Discovered exit to Research (range 10) 29229 | -4/Upper Caves | Attracted the attention of an 0b10 outpost 29235 | -4/Upper Caves | Entered Research 29235 | -3/Research | Evolved 2 slots: Power x1, Propulsion x1 29236 | -3/Research | Identified exit to Quarantine 29236 | -3/Research | Identified exit to Research 29444 | -3/Research | Local machine network offline 29456 | -3/Research | Spotted B-86 Titan 29458 | -3/Research | Befriended a Behemoth using the annoying Tinkerer's hack 29585 | -3/Research | Lost 3 allies 29612 | -3/Research | Lost 4 parts (2n1u1w) 29946 | -3/Research | Build established: Hacker-Assassin 30005 | -3/Research | Lost 3 parts (2n1u) 30080 | -3/Research | Lost 5 parts (1p4n) 30136 | -3/Research | Entered Quarantine 30350 | -3/Quarantine | Spotted Fortress 30355 | -3/Quarantine | Core integrity fell below 50% 30425 | -3/Quarantine | Build established: Hacker-Mutant 30445 | -3/Quarantine | Discovered new exit (range 6) 30445 | -3/Quarantine | Discovered new exit (range 7) 30453 | -3/Quarantine | Identified exit to Protoforge 30454 | -3/Quarantine | Entered Protoforge 30494 | -3/Protoforge | Spotted Hotshot 30494 | -3/Protoforge | Spotted Hotshot 30495 | -3/Protoforge | Superfortress began startup sequence 30537 | -3/Protoforge | Spotted Hotshot 30537 | -3/Protoforge | Spotted Hotshot 30589 | -3/Protoforge | Spotted Hotshot 30589 | -3/Protoforge | Spotted Hotshot 30615 | -3/Protoforge | Spotted AP7-3 30615 | -3/Protoforge | Spotted AP7-3 30625 | -3/Protoforge | Core integrity fell below 20% 30626 | -3/Protoforge | Spotted EXE-6 30628 | -3/Protoforge | Spotted SKR-2 30628 | -3/Protoforge | Spotted EXE-6 30629 | -3/Protoforge | Spotted SKR-2 30629 | -3/Protoforge | Spotted SKR-2 30638 | -3/Protoforge | Destroyed by SKR-2 with Compact Linear Accelerator Last Messages --------------- 30603_ O-32 Director uses terminal to summon reinforcements. 30603_ ALERT: Hostiles spotted, dispatching reinforcements to Terminal F017. 30603_ O-32 Director locks terminal. 30603_ Critical hit (Burn: +37). 30609_ Slug penetrates Wall. 30609_ Hacking Suite destroyed. 30613_ Thunder Leg+ destroyed. 30619_ System corrupted: Thunder Leg+ rejected. 30619_ Adv. Signal Interpreter destroyed. 30620_ Penetrated by Slug. 30620_ Adv. System Shield destroyed. 30621_ Kicked M-36 Artificer. 30623_ Thunder Leg+ destroyed. 30626_ Penetrated by Slug. 30629_ K-01 Serf cleans the Machine. 30634_ SKR-2 springs to life. 30637_ System corrupted: Component data lost. 30637_ Forge Pylon damaged. Map ----- +----------------------------------------------------+ | ?????????????????????????????????????????????????? | | ?? ""???????????????????????????????????????????? | | ?? "" " ????????????????????????????????????????? | | ?? ??????????????????????????????????????? | | ?? ""????????""""""""?????????????????????? | | ?# " ??? ? """"""""""""???????????????????? | | ?# ?? """""""""""""""????????????????? | | ?# """ " " """""""""""""""""??????????????? | | ?# " "" """"""""""""""""""""???????????? | | ?# """ " """"""""""""""""""""""?????????? | | ?# " """ """"" " """""""""""""""""""""""????????? | | ?# "" " """"""""""""""""""""""""???????? | | ?# " """""""""""""""""""""""???????? | | ?# """"""""""""""""""""""""??????? | | ?# """"""" "" """"""""""""""""""""""""??????? | | ?# """ " " """""""""""""""""""""""??????? | | ?# " " """""""""""""""""""""""?????? | | ?# "" """"""""""""""""""""" ?????? | | ## "" "" "" """"""""""""""""""" ?????? | | / "" "" " " """"""""""""""""" ?????? | | / "" """ "" """"""""""""""" ""??????? | | / " " """"""""" ?" ???? | | ## " "" """ w "" "" ???? | | ## " " """ "" " """"" " "" ??? | | ## " """ w % " " ??????? | | ## "" " @ " """" "?????????? | | ## " " "" " """ """ "" """"??????? | | ## " " """" """ " ??? | | ## "" " " """% " "??????? """???? | | ## "" "" " " " "????????????"???? | | ## " "" " ???????????? | | ## "" "" " """"" "" """ ??????????? | | ## "" " " K " ?????????? | | ## "" "" K " ????????? | | ?# " "" K """""""""????????? | | ?# "" "" """"""""""" ????????? | | ## """ " " " """""""??????????? | | #########EE############################??????????? | | #???????####?????????????????????????????????????? | | #????????????????????????????????????????????????? | | #????????????????????????????????????????????????? | | #????????????????????????????????????????????????? | | #????????????????????????????????????????????????? | | #????????????????????????????????????????????????? | | #????????????????????????????????????????????????? | | #????????????????????????????????????????????????? | | #????????????????????????????????????????????????? | | ?????????????????????????????????????????????????? | | ?????????????????????????????????????????????????? | | ?????????????????????????????????????????????????? | +----------------------------------------------------+ Best States ------------- Heat Dissipation 46 Energy Generation 41 Energy Capacity 420 Matter Stores 300 Matter Capacity 300 Sight Range 22 Robot Scan Range 16 Terrain Scan Density 10 Corruption Containment 8 Armor Coverage 825 Resistance: TH 15 Resistance: EM 15 Evasion (%) 75 Targeting Accuracy 8 Launcher Accuracy 30 Target Analysis 6 Core Analysis 6 Recoil Reduction 4 Offensive Hacking 42 Defensive Hacking 24 Item Schematics ----------------- Imp. Treads | -9/Materials | Scanalyzed Hacking Suite | -8/Materials | Hacked System Shield | -8/Materials | Hacked Adv. Treads | -8/Storage | Hacked Imp. Datajack | -8/Storage | Hacked Arm. Treads | -8/Recycling | Hacked Lrg. Storage Unit | -8/Recycling | Hacked Imp. Reaction Control System | -8/Recycling | Hacked Phase Cannon | -8/Recycling | Hacked Robot Schematics ------------------ H-55 Commando | -8/Recycling | Hacked G-47 Trooper | -8/Recycling | Hacked Fabricated ------------ Impulse Thruster Array | x1 | -4/Factory | Preloaded Repaired ---------- Imp. Treads | 57% | -10/Materials Imp. Treads | 74% | -10/Materials Lgt. Treads | 69% | -9/Materials Gauss Rifle | 42% | -8/Materials Insulated Plating | 71% | -8/Materials Imp. Medium Armor Plating | 85% | -8/Materials Adv. Treads | 22% | -8/Storage Enh. Autogun | 31% | -8/Storage Gauss Rifle | 40% | -8/Storage Adv. Treads | 52% | -8/Storage Hvy. Ion Engine | 56% | -8/Storage Gauss Rifle | 55% | -6/Factory Gauss Rifle | 68% | -6/Factory Imp. Medium Armor Plating | 18% | -6/Factory Lyr. Heavy Armor Plating | 18% | -5/Factory Gravmag Array | 20% | -5/Factory Antigrav System | 38% | -5/Factory Lgt. Fission Core | 40% | -5/Factory Hvy. Machine Gun | 36% | -5/Factory Studied --------- Lgt. Treads | -9/Materials | Hacked Imp. Treads | -9/Materials | Hacked Adv. Treads | -8/Materials | Hacked Rocket Launcher | -8/Materials | Hacked Hvy. Assault Rifle | -8/Materials | Hacked Hvy. Machine Gun | -6/Factory | Hacked Arm. Treads | -6/Factory | Hacked Flexi-carbon Leg | -6/Factory | Hacked Imp. Carbon-fiber Leg | -6/Factory | Hacked Gauss Rifle | -6/Factory | Hacked Nuclear Pulse Array | -4/Factory | Hacked Field Propulsion Array | -4/Factory | Hacked Thunder Leg | -3/Quarantine | Hacked Lgt. Particle Reactor | -3/Quarantine | Hacked Alien Tech Used ----------------- None Achievements -------------- I Have Friends Everywhere Protector Super-what Now? Woof! Challenges ------------ None Game ------ Seed ShadeBraceArray Manual? 0 Play Time 05:21:45 Cumulative 72.8 hours Start 2026.08.29 @ 21:32:32 End 2026.08.30 @ 03:17:48 Sessions 1 Manual Loads 0 Difficulty Rogue Special Mode None Game No. 38 Rogue 38 Adventurer 0 Explorer 0 Win Type - Total 0 Types 0/0/0/0/0/0/0/0/0/0 Lore% 53 Gallery% 44 Achievement% 42 Wizard Run 0 Options --------- Layout 1 ASCII 0 Keyboard 0 Movement Mouse Keybinds 0 Fullscreen 1 Font 24/Smallcaps Map View 50x35 Zoom Use 0% Tactical HUD 1 Map Filters NONE Filters NONE Steam 1 RUN: c81cc031-43e3-459d-ac04-a416cfadd1b4